bitfinex-derivatives/quotes_ETHF0:USTF0_20250331
["timestamp","ask_amount","ask_price","bid_price","bid_amount"]
[1743441995094,1.4527,1840.6,1840.5,2.56409992]
[1743441995488,2.53938,1840.6,1840.5,0.00815992]
[1743441995790,2.53938,1840.6,1840.5,1.09489992]
[1743441996283,2.53938,1840.6,1840.5,0.00815992]
[1743441996896,2.53938,1840.6,1840.5,1.09489992]
[1743441997091,2.53938,1840.6,1840.5,0.00815992]
[1743441997695,6.13638,1840.6,1840.5,1e-08]
[1743441998893,1.08692,1840.2,1840.1,3.28105]
[1743441999090,4.29472,1840.2,1840.1,3.28105]
[1743441999286,3.2078,1840.2,1840.1,3.28105]
[1743441999493,1.3964,1840.5,1840.2,1.08692]
[1743441999697,3.23489,1840.5,1840.4,1.0868]
[1743442000093,2.1481,1840.5,1840.4,1.0868]
[1743442000399,3.2078,1840.6,1840.5,1.08674]
[1743442001098,3.2078,1840.6,1840.5,1.83894]
[1743442002193,1.09479992,1840.7,1840.6,1.08668]
[1743442002391,1.09479992,1840.7,1840.6,3.19638]
[1743442003602,0.00815992,1840.7,1840.6,3.19638]
[1743442004291,1.09478992,1840.7,1840.6,3.19638]
[1743442004496,0.00815992,1840.7,1840.6,3.19638]
[1743442005093,1.09478992,1840.7,1840.6,3.19638]
[1743442005294,2.47048992,1840.7,1840.6,3.19638]
[1743442005791,1.38385992,1840.7,1840.6,3.19638]
[1743442008195,0.00815992,1840.7,1840.6,3.19638]
[1743442010807,1.42535992,1840.7,1840.6,3.19638]
[1743442011099,2.51198992,1840.7,1840.6,3.19638]
[1743442011403,1.42535992,1840.7,1840.6,2.50758]
[1743442011904,2.51198992,1840.7,1840.6,2.50758]
[1743442013101,2.51198992,1840.7,1840.6,1.4209]
[1743442013306,2.51198992,1840.7,1840.6,1.08668]
[1743442013307,2.51203992,1840.7,1840.6,1.08668]
[1743442014198,1.08668,1840.6,1840.5,3.2892]
[1743442014403,2.49298,1840.6,1840.5,3.2892]
[1743442014605,1.4063,1840.6,1840.3,0.72735992]
[1743442014805,1.0868,1840.4,1840.3,1.09501992]
[1743442015101,1.0868,1840.4,1840.3,0.00815992]
[1743442015509,1.7772,1840.4,1840.3,0.00815992]
[1743442016019,4.985,1840.4,1840.3,0.00815992]
[1743442020415,1.08698,1840.1,1840.0,1.08699]
[1743442021106,2.56038,1840.1,1840.0,1.08699]
[1743442022414,1.08704,1840.0,1839.9,2.55209992]
[1743442022615,2.46194,1840.0,1839.9,1.46505992]
[1743442022810,5.66974,1840.0,1839.9,0.00815992]
[1743442026515,5.66974,1840.0,1839.9,1.09525992]
[1743442026812,5.66974,1840.0,1839.9,2.45435992]
[1743442027215,5.66974,1840.0,1839.9,1.36725992]
[1743442027516,5.66974,1840.0,1839.9,2.45435992]
[1743442027717,5.66974,1840.0,1839.9,1.36725992]
[1743442028013,1.3749,1840.0,1839.9,2.45435992]
[1743442028211,1.08704,1840.1,1840.0,1.08702]
[1743442028406,3.2078,1840.2,1840.1,1.08698]
[1743442028716,3.2078,1840.2,1840.1,2.58828]
[1743442029412,4.29472,1840.2,1840.1,2.58828]
[1743442029615,5.71512,1840.2,1840.1,2.58828]
[1743442030718,4.6282,1840.2,1840.1,2.58828]
[1743442030919,5.71512,1840.2,1840.1,2.58828]
[1743442031119,5.71512,1840.2,1840.1,1.5013]
[1743442031414,5.71512,1840.2,1840.1,2.58828]
[1743442031915,1.08698,1840.1,1840.0,1.818]
[1743442032105,1.08704,1840.0,1839.9,1.09524992]
[1743442032309,1.82694,1840.0,1839.9,1.09524992]
[1743442032516,1.82694,1840.0,1839.9,2.50644992]
[1743442033011,5.03474,1840.0,1839.9,1.41935992]
[1743442033218,5.74534,1840.0,1839.9,1.41935992]
[1743442033914,5.74534,1840.0,1839.9,2.50645992]
[1743442034116,5.74534,1840.0,1839.9,1.41935992]
[1743442034318,5.74534,1840.0,1839.9,2.50645992]
[1743442034518,5.74534,1840.0,1839.9,1.41935992]
[1743442034815,5.74534,1840.0,1839.9,2.50645992]
[1743442036017,1.4573,1840.1,1840.0,1.08704]
[1743442036214,4.6651,1840.1,1840.0,2.58264]
[1743442036414,4.6651,1840.1,1840.0,3.30534]
[1743442037218,5.75208,1840.1,1840.0,2.58264]
[1743442038217,5.75208,1840.1,1840.0,1.4956]
[1743442038524,1.08704,1840.0,1839.9,2.50252992]
[1743442038820,3.20224,1840.0,1839.9,2.50252992]
[1743442039023,2.1152,1840.0,1839.9,2.50252992]
[1743442039321,2.45454,1840.0,1839.9,2.50252992]
[1743442039522,1.3675,1840.0,1839.9,2.50252992]
[1743442039822,2.45454,1840.0,1839.9,2.50252992]
[1743442041422,3.2078,1840.1,1840.0,1.08704]
[1743442041625,4.29478,1840.1,1840.0,2.51424]
[1743442042510,3.2078,1840.1,1840.0,2.51424]
[1743442042813,4.29478,1840.1,1840.0,2.51424]
[1743442044116,3.2078,1840.1,1840.0,2.51424]
[1743442044626,3.2078,1840.1,1840.0,6.11024]
[1743442045722,5.75451,1840.4,1840.3,1.08686]
[1743442046521,5.75451,1840.4,1840.3,1.4511]
[1743442046714,5.75451,1840.4,1840.3,2.53796]
[1743442047120,5.75451,1840.4,1840.3,1.4511]
[1743442047420,5.75451,1840.4,1840.3,2.53796]
[1743442047623,5.75451,1840.4,1840.3,1.4511]
[1743442047819,5.75451,1840.4,1840.3,2.53796]
[1743442051827,1.08686,1840.3,1840.2,0.7471]
[1743442052128,1.08686,1840.3,1839.9,1.09522992]
[1743442052129,1.08704,1840.0,1839.9,1.09522992]
[1743442052320,4.29484,1840.0,1839.9,0.00815992]
[1743442052525,4.29484,1840.0,1839.9,1.09525992]
[1743442052916,5.01324,1840.0,1839.9,1.09525992]
[1743442053119,5.01324,1840.0,1839.9,2.50325992]
[1743442054521,5.01324,1840.0,1839.9,1.41615992]
[1743442055431,5.01324,1840.0,1839.9,2.50325992]
[1743442055622,5.01324,1840.0,1839.9,1.41615992]
[1743442056524,5.01324,1840.0,1839.9,2.50325992]
[1743442058727,4.29484,1840.0,1839.9,2.50325992]
[1743442059633,2.48718,1840.1,1840.0,1.08704]
[1743442059821,2.48718,1840.1,1840.0,2.48164]
[1743442060023,1.4002,1840.1,1840.0,2.48164]
[1743442060227,2.48718,1840.1,1840.0,2.48164]
[1743442061228,5.69498,1840.1,1840.0,1.3946]
[1743442061430,5.69498,1840.1,1840.0,2.48164]
[1743442061930,1.08704,1840.0,1839.9,1.09523992]
[1743442062231,1.3578,1840.0,1839.9,1.09523992]
[1743442062925,2.44484,1840.0,1839.9,1.09523992]
[1743442063431,2.44484,1840.0,1839.9,2.48443992]
[1743442063629,2.44484,1840.0,1839.9,2.48445992]
[1743442063830,3.13174,1840.0,1839.9,2.48445992]
[1743442066726,2.0447,1840.0,1839.9,2.48445992]
[1743442067430,3.13174,1840.0,1839.9,2.48445992]
[1743442069037,3.13174,1840.0,1839.9,1.39735992]
[1743442069438,3.13174,1840.0,1839.9,0.00815992]
[1743442069739,3.13174,1840.0,1839.9,1.09525992]
[1743442070136,3.13174,1840.0,1839.9,0.00815992]
[1743442071840,3.13174,1840.0,1839.9,1.09525992]
[1743442072036,3.13174,1840.0,1839.9,2.53615992]
[1743442072640,3.13174,1840.0,1839.9,1.44905992]
[1743442073737,3.13174,1840.0,1839.9,2.53615992]
[1743442074140,3.13174,1840.0,1839.9,1.44905992]
[1743442074341,3.13174,1840.0,1839.9,0.00815992]
[1743442074842,3.13174,1840.0,1839.4,1.08732]
[1743442074843,1.08737,1839.5,1839.4,1.08732]
[1743442075140,4.29517,1839.5,1839.4,2.49862]
[1743442075346,3.2078,1839.5,1839.4,2.49862]
[1743442075840,1.08716,1839.8,1839.5,5.43655]
[1743442076139,1.0872,1839.8,1839.7,1.08717]
[1743442076336,2.56345992,1839.8,1839.7,1.08717]
[1743442076535,2.56345992,1839.8,1839.7,2.46097]
[1743442077140,2.56341992,1839.8,1839.7,2.46097]
[1743442079640,2.56341992,1839.8,1839.7,1.3738]
[1743442079844,2.56341992,1839.8,1839.7,2.46102]
[1743442080338,1.47625992,1839.8,1839.7,2.46102]
[1743442080544,0.00815992,1839.8,1839.7,2.46102]
[1743442081039,0.00815992,1839.8,1839.7,8.55702]
[1743442081238,3.9093,1840.3,1840.2,1.08692]
[1743442081438,4.29466,1840.3,1840.2,1.08692]
[1743442081839,1.08692,1840.2,1840.1,3.17804]
[1743442082043,3.15582,1840.2,1840.1,2.0911]
[1743442082246,3.15582,1840.2,1840.1,3.17808]
[1743442083044,3.15582,1840.2,1840.1,2.0911]
[1743442083346,3.15582,1840.2,1840.0,1.08699]
[1743442083347,1.08708,1840.0,1839.9,1.08708]
[1743442083846,1.08709,1840.0,1839.9,1.08708]
[1743442084145,1.08709,1840.0,1839.8,5.6621]
[1743442084146,1.0871,1839.9,1839.8,5.6621]
[1743442084348,1.7743,1839.9,1839.8,3.15326]
[1743442085350,4.9821,1839.9,1839.8,3.15326]
[1743442085547,1.08716,1839.8,1839.7,1.08719]
[1743442085747,2.54156,1839.8,1839.7,2.50259]
[1743442085951,3.24516,1839.8,1839.7,1.08719]
[1743442086146,2.158,1839.8,1839.7,2.50259]
[1743442086347,3.24516,1839.8,1839.7,2.50259]
[1743442086750,2.158,1839.8,1839.5,1.3967]
[1743442087051,5.74946,1839.7,1839.6,1.08727]
[1743442087247,5.74946,1839.7,1839.6,2.50267]
[1743442088148,5.74946,1839.7,1839.6,1.4154]
[1743442088643,5.74946,1839.7,1839.6,2.50267]
[1743442088850,5.74946,1839.7,1839.6,1.4154]
[1743442089251,1.08727,1839.6,1839.5,1.7764]
[1743442089452,3.27787,1839.6,1839.5,3.249]
[1743442089957,2.1906,1839.6,1839.3,0.71005992]
[1743442090246,1.08739,1839.4,1839.3,5.77865992]
[1743442090557,6.45188,1839.5,1839.4,1.08739]
[1743442090854,4.6717,1839.5,1839.4,2.55999]
[1743442092044,3.2078,1840.0,1839.6,1.08727]
[1743442092251,1.4162,1839.8,1839.7,1.08722]
[1743442092748,2.50336,1839.8,1839.7,1.08722]
[1743442092955,1.4162,1839.8,1839.7,1.08722]
[1743442093156,2.50336,1839.8,1839.7,1.08722]
[1743442093655,1.4162,1839.8,1839.7,1.08722]
[1743442094153,2.50336,1839.8,1839.7,1.08722]
[1743442094958,1.4162,1839.8,1839.7,1.08722]
[1743442095153,2.50336,1839.8,1839.7,1.08722]
[1743442098161,1.4162,1839.8,1839.7,1.08722]
[1743442098758,7.34194,1839.8,1839.4,3.2078]
[1743442098959,7.34194,1839.8,1839.5,4.68229]
[1743442098960,1.08731,1839.6,1839.5,4.68229]
[1743442099456,2.1315,1839.7,1839.6,1.08727]
[1743442099457,2.47195,1839.7,1839.6,1.08727]
[1743442099662,1.3847,1839.7,1839.6,1.08727]
[1743442100461,2.47192,1839.7,1839.6,1.08727]
[1743442100861,1.3847,1839.7,1839.6,1.08727]
[1743442102165,2.47192,1839.7,1839.6,1.08727]
[1743442103167,1.08737,1839.5,1839.4,1.08734]
[1743442103364,1.08739,1839.4,1839.3,2.52314992]
[1743442103571,5.76889,1839.4,1839.3,2.52314992]
[1743442104174,4.6815,1839.4,1839.3,2.52314992]
[1743442105175,5.76889,1839.4,1839.3,2.52314992]
[1743442106671,4.295,1839.8,1839.5,2.71824]
[1743442106977,1.08722,1839.7,1839.6,1.5025]
[1743442107174,2.47912,1839.7,1839.6,1.5025]
[1743442107377,1.08727,1839.6,1839.5,1.08732]
[1743442107579,3.17207,1839.6,1839.5,2.58982]
[1743442110378,2.0848,1839.6,1839.5,2.58982]
[1743442110574,1.3919,1839.6,1839.5,2.58982]
[1743442111168,1.08726,1839.7,1839.5,1.5025]
[1743442111375,2.47662,1839.7,1839.6,2.46407]
[1743442111575,1.3894,1839.7,1839.6,2.46407]
[1743442112675,1.81726,1839.8,1839.7,1.08722]
[1743442112982,1.3903,1839.8,1839.7,3.91422]
[1743442113371,1.77977,1840.0,1839.9,1.0871]
[1743442113581,3.17007,1840.0,1839.9,1.0871]
[1743442114585,3.17004,1840.0,1839.9,1.0871]
[1743442114782,3.17004,1840.0,1839.8,1.3863]
[1743442114783,1.0871,1839.9,1839.8,1.3863]
[1743442115075,2.4774,1839.9,1839.8,2.47342]
[1743442115780,1.08716,1839.8,1839.7,5.37668]
[1743442116076,3.16736,1839.8,1839.7,1.78168]
[1743442116279,3.16736,1839.8,1839.7,1.08718]
[1743442118982,1.3644,1839.8,1839.7,1.08718]
[1743442119278,1.3644,1839.8,1839.7,1.83778]
[1743442120178,2.45156,1839.8,1839.7,1.83778]
[1743442121282,1.3644,1839.8,1839.7,1.83778]
[1743442122484,2.45156,1839.8,1839.7,1.83778]
[1743442122874,1.3644,1839.8,1839.7,1.83778]
[1743442123583,0.6927,1840.0,1839.9,1.0871]
[1743442123775,0.6828,1840.2,1840.1,1.08698]
[1743442123979,1.4179,1840.2,1840.1,1.08698]
[1743442124384,0.75145992,1840.3,1840.2,1.08692]
[1743442124587,2.16935992,1840.3,1840.2,1.08692]
[1743442124886,1.42605992,1840.3,1840.2,2.54512]
[1743442128376,2.51291992,1840.3,1840.2,2.54512]
[1743442128581,1.08692,1840.2,1840.1,8.57614]
[1743442128781,0.69295992,1840.3,1840.2,1.08692]
[1743442129487,1.77986992,1840.3,1840.2,1.08692]
[1743442130583,6.61804992,1840.3,1839.9,3.2078]
[1743442130783,1.08704,1840.0,1839.9,4.29484]
[1743442131294,1.0871,1839.9,1839.8,3.21991]
[1743442131591,1.08708,1840.0,1839.9,1.08705]
[1743442131793,1.79758,1840.0,1839.9,1.08705]
[1743442133790,1.0871,1839.9,1839.8,2.52102]
[1743442136989,0.7105,1840.0,1839.9,1.0871]
[1743442136990,1.7976,1840.0,1839.9,1.0871]
[1743442138093,1.7976,1840.0,1839.9,2.5188]
[1743442138695,0.7105,1840.0,1839.9,2.5188]
[1743442138991,0.00815992,1840.3,1840.2,1.08692]
[1743442139294,25.49916741,1841.1,1840.6,1.08668]
[1743442139493,26.58560741,1841.1,1840.6,7.88848]
[1743442139690,25.49916741,1841.1,1840.6,7.88848]
[1743442140199,26.58556741,1841.1,1840.6,7.88848]
[1743442140596,0.00815992,1840.8,1840.6,7.88848]
[1743442141005,0.00815992,1840.8,1840.7,1.08663]
[1743442141295,0.00815992,1840.8,1840.7,2.44653]
[1743442141494,0.00815992,1840.8,1840.7,1.3599]
[1743442141798,0.00815992,1840.8,1840.7,1.08663]
[1743442142200,0.00815992,1840.8,1840.7,4.29443]
[1743442142592,0.00815992,1840.8,1840.7,4.97843]
[1743442143892,9.30895992,1840.8,1840.5,0.00815992]
[1743442144097,3.2078,1840.6,1840.5,0.00815992]
[1743442144299,1.08668,1840.6,1840.5,1.09488992]
[1743442144498,1.4988,1840.7,1840.6,1.08668]
[1743442144894,1.4988,1840.7,1840.6,2.47298]
[1743442147705,0.74575992,1840.8,1840.7,1.08663]
[1743442147905,2.17855992,1840.8,1840.7,5.67263]
[1743442149101,2.17855992,1840.8,1840.5,3.21595992]
[1743442149298,1.08668,1840.6,1840.5,3.21595992]
[1743442149602,1.08668,1840.6,1840.5,0.00815992]
[1743442149806,5.80028,1840.6,1840.5,0.00815992]
[1743442151100,8.30028,1840.6,1840.5,0.00815992]
[1743442151304,1.08692,1840.2,1840.1,5.66003]
[1743442151604,1.08704,1840.0,1839.9,2.45235]
[1743442151806,3.29632,1840.1,1840.0,1.08704]
[1743442151998,2.2093,1840.1,1840.0,1.08704]
[1743442152504,3.29628,1840.1,1840.0,1.08704]
[1743442153001,1.08704,1840.0,1839.9,2.46053992]
[1743442153210,5.72244,1840.0,1839.9,0.00815992]
[1743442153404,9.31444,1840.0,1839.9,0.00815992]
[1743442154208,2.7178,1839.9,1839.2,6.87752]
[1743442154414,1.08735,1839.5,1839.4,1.08738]
[1743442154805,6.7998,1839.7,1839.3,4.2201]
[1743442155006,1.4276,1839.6,1839.5,1.08733]
[1743442155510,1.4276,1839.6,1839.5,2.59173]
[1743442155812,2.51487,1839.6,1839.5,2.59173]
[1743442156014,2.51487,1839.6,1839.5,1.5044]
[1743442156310,2.51487,1839.6,1839.5,2.59173]
[1743442156500,1.4276,1839.6,1839.5,2.59173]
[1743442156705,2.51487,1839.6,1839.5,2.59173]
[1743442157311,2.51487,1839.6,1839.5,1.5044]
[1743442157499,2.51487,1839.6,1839.5,2.59173]
[1743442157901,2.51487,1839.6,1839.5,1.5044]
[1743442158202,1.08733,1839.5,1839.4,1.09554992]
[1743442158507,3.25853,1839.5,1839.4,1.09554992]
[1743442161707,2.1712,1839.5,1839.4,1.09554992]
[1743442164610,6.80795992,1839.7,1839.6,1.08727]
[1743442164812,0.00815992,1839.7,1839.6,1.08727]
[1743442165520,1.49055992,1839.7,1839.6,1.08727]
[1743442165707,1.49055992,1839.7,1839.6,3.86427]
[1743442179429,2.57777992,1839.7,1839.6,2.0947]
[1743442179633,1.08731,1839.6,1839.4,0.74985992]
[1743442179832,3.95361,1839.6,1839.5,1.08728]
[1743442180132,2.8663,1839.6,1839.5,1.08728]
[1743442180337,3.95357,1839.6,1839.5,2.46328]
[1743442181932,0.00815992,1839.7,1839.6,1.08727]
[1743442182238,0.00815992,1839.7,1839.6,2.46327]
[1743442186932,9.92e-06,1839.7,1839.6,8.55627]
[1743442187229,9.92e-06,1839.7,1839.6,9.05919266]
[1743442188334,9.92e-06,1839.7,1839.6,9.05902437]
[1743442188639,9.92e-06,1839.7,1839.6,4.96327]
[1743442189030,9.92e-06,1839.7,1839.6,2.46327]
[1743442192832,1.43360992,1839.7,1839.6,2.46327]
[1743442200338,9.92e-06,1839.7,1839.6,2.46327]
[1743442200842,58.391,1840.5,1840.4,1.0868]
[1743442201242,0.705,1840.6,1840.5,1.08674]
[1743442201437,0.50966366,1840.7,1840.6,1.08668]
[1743442201840,0.7425,1841.0,1840.5,3.2078]
[1743442202134,1.09472992,1840.8,1840.6,1.08664]
[1743442202334,4.68772992,1840.8,1840.6,1.08664]
[1743442202537,1.08668,1840.6,1840.5,0.00815992]
[1743442202935,1.08689,1840.3,1840.1,4.29474]
[1743442203138,1.0871,1839.9,1839.8,0.7313]
[1743442203439,3.593,1840.0,1839.8,1.08716]
[1743442203637,4.68009,1840.0,1839.8,1.08716]
[1743442203845,1.3579,1839.9,1839.8,1.08716]
[1743442204935,1.3579,1839.9,1839.8,4.29496]
[1743442205140,1.3579,1839.9,1839.8,1.08716]
[1743442206247,2.1041,1839.9,1839.8,1.08716]
[1743442206744,0.7193,1840.2,1840.1,1.08698]
[1743442208149,2.1503,1840.2,1840.1,1.08698]
[1743442208542,4.3382,1840.3,1840.0,1.4332]
[1743442208543,0.7462,1840.3,1840.2,1.08692]
[1743442208743,2.1772,1840.3,1840.2,1.08692]
[1743442209047,2.1772,1840.3,1840.1,1.08693]
[1743442209048,5.385,1840.3,1840.1,1.08693]
[1743442209249,2.1819,1840.2,1840.1,1.08693]
[1743442209839,2.1819,1840.2,1839.9,2.1196]
[1743442210044,2.518,1840.1,1839.8,3.2078]
[1743442210244,2.52194,1840.0,1839.8,2.46193]
[1743442210439,1.08716,1839.8,1839.7,0.00815992]
[1743442210639,4.6427,1839.9,1839.8,1.08716]
[1743442210842,1.4349,1839.9,1839.8,1.08716]
[1743442211052,1.4349,1839.9,1839.8,2.46196]
[1743442211548,1.4349,1839.9,1839.7,1.09531992]
[1743442211549,2.52205,1839.9,1839.7,1.09531992]
[1743442211748,1.4349,1839.9,1839.8,1.08716]
[1743442211949,2.52202,1839.9,1839.8,1.08716]
[1743442212251,1.4349,1839.9,1839.8,1.08716]
[1743442213151,2.522,1839.9,1839.8,1.08716]
[1743442213354,1.4349,1839.9,1839.8,1.08716]
[1743442214647,1.4349,1839.9,1839.8,1.78976]
[1743442215047,1.4349,1839.9,1839.8,3.23806]
[1743442215648,0.7282,1840.0,1839.9,1.0871]
[1743442215851,2.1849,1840.0,1839.9,2.5354]
[1743442216452,3.27194,1840.0,1839.9,2.5354]
[1743442216653,3.27194,1840.0,1839.9,1.0871]
[1743442217248,2.1849,1840.0,1839.9,1.0871]
[1743442217750,0.7509,1840.2,1840.1,1.08698]
[1743442217751,0.6816,1840.2,1840.1,1.08698]
[1743442217957,2.1225,1840.2,1840.1,1.08698]
[1743442218650,2.1225,1840.2,1840.1,2.45238]
[1743442219357,3.20946,1840.2,1840.1,1.08698]
[1743442219553,2.1225,1840.2,1840.1,1.08698]
[1743442220460,3.20942,1840.2,1840.1,1.08698]
[1743442222855,8.04772,1840.2,1839.8,0.7026]
[1743442223048,3.2078,1840.4,1839.8,6.3099]
[1743442223254,0.7192,1840.4,1840.3,1.08686]
[1743442223551,5.0761,1840.7,1840.6,1.08668]
[1743442223750,9.0031,1840.7,1840.6,1.08668]
[1743442223958,2.2033,1840.7,1840.6,1.08668]
[1743442224162,1.4841,1840.7,1840.6,1.08668]
[1743442224360,0.73375992,1840.8,1840.7,1.08663]
[1743442224361,0.00815992,1840.8,1840.7,1.08663]
[1743442225464,0.00815992,1840.8,1840.7,1.80563]
[1743442225650,1.37185992,1840.8,1840.7,1.80563]
[1743442225859,25.49916741,1841.9,1841.2,3.2078]
[1743442226163,3.2078,1842.8,1841.9,2.71479]
[1743442226457,3.2078,1842.3,1841.8,3.2078]
[1743442226658,10.2126,1842.3,1841.8,3.17466053]
[1743442226864,3.2078,1842.2,1841.8,3.17466053]
[1743442227064,4.30171992,1842.2,1841.9,0.00815992]
[1743442227263,3.2078,1842.1,1841.9,0.00815992]
[1743442227656,3.2078,1842.0,1841.9,0.00815992]
[1743442227860,3.2078,1842.1,1842.0,1.08586]
[1743442228057,3.2078,1842.1,1842.0,3.2078]
[1743442228265,5.7078,1842.1,1842.0,3.2078]
[1743442228455,6.7936,1842.1,1842.0,2.0774]
[1743442228666,3.2078,1842.0,1841.8,4.29374]
[1743442228866,8.08967,1842.0,1841.8,3.2078]
[1743442229168,3.2078,1841.9,1841.8,3.2078]
[1743442229871,3.2078,1841.9,1841.8,4.29378]
[1743442230964,4.6655,1841.9,1841.8,4.29378]
[1743442231171,5.75142,1841.9,1841.7,0.00815992]
[1743442231468,5.75148,1841.8,1841.7,0.00815992]
[1743442231674,2.1882,1841.8,1841.7,0.00815992]
[1743442231968,6.48198,1841.8,1841.7,0.00815992]
[1743442233067,9.68978,1841.8,1841.7,0.00815992]
[1743442234366,8.6038,1841.8,1841.7,1.09419992]
[1743442234566,9.68978,1841.8,1841.7,0.00815992]
[1743442234769,9.68978,1841.8,1841.7,1.09419992]
[1743442234970,9.68978,1841.8,1841.7,0.00815992]
[1743442235470,5.396,1841.8,1841.7,1.09419992]
[1743442235865,6.48198,1841.8,1841.7,1.09419992]
[1743442236059,6.48198,1841.8,1841.7,0.00815992]
[1743442236861,9.68978,1841.8,1841.7,0.00815992]
[1743442237069,12.18978,1841.8,1841.7,0.00815992]
[1743442238265,9.68978,1841.8,1841.7,0.00815992]
[1743442239168,6.48198,1841.8,1841.7,0.00815992]
[1743442239764,9.68978,1841.8,1841.7,0.00815992]
[1743442242084,6.48198,1841.8,1841.7,0.00815992]
[1743442242975,6.48198,1841.8,1841.7,1.09419992]
[1743442243777,6.48198,1841.8,1841.7,0.00815992]
[1743442243977,6.48198,1841.8,1841.7,1.09419992]
[1743442244779,6.48198,1841.8,1841.7,0.00815992]
[1743442245079,6.48198,1841.8,1841.7,1.09419992]
[1743442245277,6.48198,1841.8,1841.7,0.00815992]
[1743442251873,9.68978,1841.8,1841.7,0.00815992]
[1743442252079,1.08621,1841.4,1841.3,0.719]
[1743442252279,1.08621,1841.4,1841.3,1.4709151]
[1743442252480,4.29401,1841.4,1841.3,0.719]
[1743442252788,5.78851,1841.4,1841.3,1.80527]
[1743442253182,5.78851,1841.4,1841.3,0.719]
[1743442253382,5.78851,1841.4,1841.3,1.47193317]
[1743442253685,5.78851,1841.4,1841.3,0.719]
[1743442255285,5.78851,1841.4,1841.3,2.97424384]
[1743442258382,5.78851,1841.4,1841.3,1.47234384]
[1743442258579,1.08627,1841.3,1841.2,0.00815992]
[1743442258776,1.08627,1841.3,1841.2,0.76224114]
[1743442258777,5.79097,1841.3,1841.2,0.76224114]
[1743442259185,5.79097,1841.3,1841.2,0.76224543]
[1743442259577,8.99877,1841.3,1841.2,0.76222265]
[1743442259780,8.99877,1841.3,1841.2,0.00815992]
[1743442260683,1.08645,1841.0,1840.9,0.7471]
[1743442260984,4.80745,1841.0,1840.9,1.5013534]
[1743442261285,8.01525,1841.0,1840.9,1.5013534]
[1743442261587,8.01525,1841.0,1840.9,1.50136876]
[1743442261883,8.01525,1841.0,1840.9,2.86166876]
[1743442262783,8.01525,1841.0,1840.9,1.50136876]
[1743442262981,8.01525,1841.0,1840.9,0.7471]
[1743442263379,1.50505992,1841.1,1841.0,1.08645]
[1743442263380,0.00815992,1841.1,1841.0,1.08645]
[1743442263579,1.09454992,1841.1,1841.0,1.83964729]
[1743442263879,4.30234992,1841.1,1841.0,3.19994729]
[1743442264277,3.21595992,1841.1,1841.0,3.19994729]
[1743442264481,4.30234992,1841.1,1841.0,3.19985509]
[1743442264678,5.79944992,1841.1,1841.0,3.19985509]
[1743442265981,4.71305992,1841.1,1841.0,4.40486795]
[1743442266285,3.2078,1841.5,1841.4,1.08621]
[1743442266582,1.08632,1841.3,1841.2,1.08628]
[1743442266787,1.08632,1841.3,1841.2,2.53470844]
[1743442267089,5.66942,1841.3,1841.2,2.53470844]
[1743442267383,4.5831,1841.3,1841.2,3.73978513]
[1743442267589,3.2078,1841.3,1841.2,3.73978513]
[1743442267789,3.2078,1841.3,1841.2,5.12498513]
[1743442268188,2.46971992,1841.4,1841.3,1.08627]
[1743442268395,5.67751992,1841.4,1841.3,3.20000175]
[1743442269093,5.67746992,1841.4,1841.3,3.20000175]
[1743442269287,4.59125992,1841.4,1841.3,3.20000175]
[1743442269489,3.21595992,1841.4,1841.3,6.40780175]
[1743442269786,3.716,1842.1,1842.0,1.08584]
[1743442270089,3.17053992,1842.0,1841.9,1.08592]
[1743442270383,3.17053992,1842.0,1841.9,1.80422]
[1743442270384,4.64993992,1842.0,1841.9,1.80422]
[1743442270590,3.17053992,1842.0,1841.9,1.80422]
[1743442270892,3.17053992,1842.0,1841.9,2.55714261]
[1743442270893,4.64993992,1842.0,1841.9,2.55714261]
[1743442271088,4.64993992,1842.0,1841.9,1.47122261]
[1743442271384,1.08592,1841.9,1841.8,2.45463992]
[1743442271692,3.45695992,1841.9,1841.8,3.20731483]
[1743442271984,3.45695992,1841.9,1841.8,3.20731554]
[1743442272185,4.54287992,1841.9,1841.8,3.20731554]
[1743442272392,4.54287992,1841.9,1841.8,2.45463992]
[1743442272589,3.45695992,1841.9,1841.8,3.20711992]
[1743442273288,4.54287992,1841.9,1841.8,3.20711992]
[1743442273489,4.54287992,1841.9,1841.8,2.45463992]
[1743442274393,3.45695992,1841.9,1841.8,3.20683057]
[1743442274688,3.45695992,1841.9,1841.8,3.20682898]
[1743442275295,3.17057992,1841.9,1841.8,3.20682898]
[1743442275494,2.08465992,1841.9,1841.8,3.20682898]
[1743442275690,2.08465992,1841.9,1841.8,3.20665069]
[1743442276091,3.17057992,1841.9,1841.8,2.45463992]
[1743442276391,3.50555992,1841.9,1841.8,2.45463992]
[1743442276996,2.50682,1841.9,1841.8,2.45463992]
[1743442277194,4.59147992,1841.9,1841.8,2.45463992]
[1743442279198,3.50555992,1841.9,1841.8,2.45463992]
[1743442281595,4.59147992,1841.9,1841.8,2.45463992]
[1743442281790,7.79927992,1841.9,1841.8,0.00815992]
[1743442281996,1.08615,1841.5,1841.4,2.63004008]
[1743442282193,1.08615,1841.5,1841.1,1.4059]
[1743442282194,1.08627,1841.3,1841.2,1.5069]
[1743442282394,4.29413,1841.3,1841.2,1.08633]
[1743442282701,4.29413,1841.3,1841.2,2.59323]
[1743442282902,5.70423,1841.3,1841.2,1.5069]
[1743442283088,7.33369,1841.3,1840.9,1.08646]
[1743442283397,3.2078,1841.0,1840.7,1.4059]
[1743442283599,1.08657,1840.8,1840.7,2.49248]
[1743442283797,6.14405,1840.9,1840.8,1.08657]
[1743442283999,6.15220992,1840.9,1840.8,1.08657]
[1743442284900,1.08657,1840.8,1840.7,1.41405992]
[1743442285099,5.65387,1840.8,1840.7,0.00815992]
[1743442289303,5.65387,1840.8,1840.3,1.80951]
[1743442289304,1.0868,1840.4,1840.3,1.80951]
[1743442289802,4.77479,1840.5,1840.4,1.0868]